bitfinex/quotes_ETHUSD_20241207
["timestamp","ask_amount","ask_price","bid_price","bid_amount"]
[1733585907862,0.7856,4001.2,4000.5,1.74977]
[1733585907863,1.83095861,4001.2,4000.5,1.74977]
[1733585908176,0.86378362,4001.1,4000.5,1.74977]
[1733585908379,1.83095861,4001.2,4000.5,1.74977]
[1733585908587,0.86379757,4001.1,4000.5,1.74977]
[1733585908796,0.06509023,4001.1,4000.6,1.74972]
[1733585908947,0.06509023,4001.1,4000.7,1.74968]
[1733585910650,0.86383127,4001.0,4000.7,1.74968]
[1733585910988,1.83095861,4001.2,4000.7,1.74968]
[1733585911145,0.06509023,4000.9,4000.7,1.74968]
[1733585911350,1.29558855,4001.1,4000.7,1.74968]
[1733585911650,0.06509023,4000.8,4000.7,1.74968]
[1733585911858,1.29561457,4001.1,4000.7,1.74968]
[1733585912053,0.06509023,4000.8,4000.7,1.74968]
[1733585912379,0.06509023,4000.8,4000.7,1.924648]
[1733585912574,1.29570931,4001.1,4000.7,1.924648]
[1733585912893,0.06509023,4000.8,4000.7,1.924648]
[1733585913346,1.04535861,4001.2,4000.5,1.74978]
[1733585913548,2.22497136,4001.1,4000.5,1.74978]
[1733585913748,0.86395245,4001.0,4000.5,1.74978]
[1733585913986,1.29594765,4001.1,4000.5,1.74978]
[1733585914188,0.06509023,4000.9,4000.5,1.74978]
[1733585914499,1.6495719,4000.8,4000.0,0.8315]
[1733585914657,1.04535861,4000.6,4000.0,0.8315]
[1733585914849,1.04535861,4000.4,4000.0,0.8315]
[1733585915052,0.86406639,4000.3,4000.0,0.8315]
[1733585915286,0.06509023,4000.3,4000.0,0.8315]
[1733585916264,1.04535861,4000.6,4000.1,1.74991]
[1733585916453,0.06509023,4000.2,4000.1,1.74991]
[1733585916650,1.29622593,4000.6,4000.1,2.008051]
[1733585916854,0.06509023,4000.2,4000.0,0.8315]
[1733585917067,1.04535861,4000.7,4000.0,0.8315]
[1733585917068,1.29618721,4000.6,4000.0,0.8315]
[1733585917297,0.06509023,4000.1,4000.0,0.8315]
[1733585917463,1.29622992,4000.4,4000.0,0.8315]
[1733585917669,0.06458575,4000.1,4000.0,0.8315]
[1733585918165,1.04535861,4000.4,3999.7,1.75012]
[1733585918352,1.04535861,4000.4,3997.1,3.65853668]
[1733585918353,0.06458575,4000.1,3999.6,0.8315]
[1733585918558,1.64981266,4000.0,3998.8,0.8315]
[1733585918797,0.85018575,4000.0,3999.0,1.75039]
[1733585918957,0.86417247,3999.9,3999.1,1.75038]
[1733585919158,0.06450813,3999.9,3999.1,1.75038]
[1733585919465,0.86420606,3999.8,3999.1,1.75038]
[1733585919664,0.06450813,3999.9,3999.1,1.75038]
[1733585919997,1.83095861,4000.0,3999.1,1.75038]
[1733585919998,0.92872235,3999.8,3999.1,1.75038]
[1733585920177,0.06450813,3999.8,3998.9,1.75047]
[1733585920393,2.1604387,3999.7,3998.9,1.75047]
[1733585920695,0.86417548,3999.6,3998.9,1.75047]
[1733585920910,0.06436256,3999.7,3998.9,1.75047]
[1733585921079,0.86418809,3999.6,3998.8,0.8315]
[1733585921402,0.06436256,3999.5,3998.8,0.8315]
[1733585921588,1.04535861,3999.8,3998.8,2.582]
[1733585921788,0.06436256,3999.4,3998.8,0.8315]
[1733585921993,1.83095861,4000.0,3998.8,0.8315]
[1733585922168,0.86420877,3999.9,3999.3,2.5818]
[1733585922501,0.7856,4000.0,3999.3,2.5818]
[1733585922669,0.86423122,3999.9,3999.3,2.5818]
[1733585922869,1.83095861,4000.0,3999.3,2.5818]
[1733585923096,0.86424541,3999.9,3999.3,2.5818]
[1733585923296,1.83095861,4000.0,3999.3,2.5818]
[1733585923467,0.86426583,3999.9,3999.3,1.7503]
[1733585923685,1.29639027,3999.9,3999.0,1.75039]
[1733585923877,0.0641927,3999.8,3999.5,1.75019]
[1733585924107,0.0641927,3999.8,3999.4,1.75022]
[1733585924410,0.0642655,3999.7,3999.4,1.75022]
[1733585924688,2.3419634,4000.1,3999.4,1.75022]
[1733585924834,0.0642655,3999.6,3999.4,1.75022]
[1733585925008,1.04535861,4000.1,3999.2,2.56844]
[1733585925336,0.0642655,3999.5,3999.2,0.8181]
[1733585925627,0.0642655,3999.4,3999.3,1.75029]
[1733585925831,1.04535861,4000.1,3999.3,1.75029]
[1733585926034,0.0642655,3999.4,3999.3,1.75029]
[1733585926240,1.04535861,4000.0,3999.5,1.75021]
[1733585926400,0.86445107,3999.9,3999.5,1.75021]
[1733585926732,1.29667339,4000.0,3999.5,1.75021]
[1733585926931,0.86445896,3999.9,3999.5,1.75021]
[1733585927230,1.29668314,4000.0,3999.5,1.75021]
[1733585927440,0.86446677,3999.9,3999.5,1.75021]
[1733585927602,1.04535861,4000.2,3999.6,0.8181]
[1733585927796,0.86448115,4000.1,3999.8,1.75008]
[1733585928025,1.04535861,4000.3,3999.8,1.75008]
[1733585928341,0.86452356,4000.2,3999.8,1.75008]
[1733585928510,1.04535861,4000.3,3999.6,0.8181]
[1733585928717,0.86465781,4000.2,3999.7,0.256833]
[1733585929023,1.04535861,4000.4,3999.7,0.256833]
[1733585929024,1.29697685,4000.3,3999.7,0.256833]
[1733585929204,1.04535861,4000.4,3999.7,0.256833]
[1733585929205,0.86465604,4000.2,3999.7,0.256833]
[1733585929409,1.29701821,4000.3,3999.7,0.256833]
[1733585929739,0.86472955,4000.2,3999.8,1.75008]
[1733585929909,1.29707701,4000.3,3999.8,1.75008]
[1733585930111,0.86472784,4000.2,3999.8,1.75008]
[1733585930429,1.29709177,4000.3,3999.8,1.75008]
[1733585930630,0.86472473,4000.2,3999.6,2.56827]
[1733585930835,1.04535861,4000.4,3999.6,2.56827]
[1733585931047,2.16183738,4000.3,3999.6,2.56827]
[1733585931238,0.86473495,4000.2,3999.6,0.8181]
[1733585931547,2.16184463,4000.1,3999.3,0.8181]
[1733585931697,0.86472833,4000.0,3999.3,0.8181]
[1733585931895,1.29709426,4000.1,3999.3,0.8181]
[1733585932173,0.86472033,4000.0,3999.3,2.56839]
[1733585932440,1.29713061,4000.1,3999.3,2.56839]
[1733585932652,1.23636797,4000.2,3999.5,1.7502]
[1733585932931,0.8647463,4000.1,3999.5,1.7502]
[1733585933132,1.04535861,4000.2,3999.5,1.7502]
[1733585933337,0.86473387,4000.1,3999.5,1.7502]
[1733585933640,1.04535861,4000.2,3999.5,1.7502]
[1733585933932,2.16182171,4000.1,3999.5,1.7502]
[1733585934132,0.86472868,4000.0,3999.5,1.7502]
[1733585934349,1.29725801,4000.1,3999.5,1.7502]
[1733585934658,1.04535861,4000.2,3999.5,1.7502]
[1733585934659,0.8648262,4000.0,3999.5,1.7502]
[1733585934804,1.29723423,4000.1,3999.5,1.7502]
[1733585935003,1.04535861,4000.2,3999.5,1.7502]
[1733585935333,2.16207136,4000.1,3999.5,1.7502]
[1733585935544,1.04535861,4000.2,3999.5,1.7502]
[1733585935696,0.86486718,4000.1,3999.5,0.25683]
[1733585935919,1.04535861,4000.3,3999.6,0.8181]
[1733585936113,2.16216181,4000.2,3999.6,0.8181]
[1733585936302,0.86486472,4000.1,3999.8,1.75008]
[1733585936517,1.04535861,4000.3,3999.8,1.75008]
[1733585936715,2.1623612,4000.2,3999.6,0.8181]
[1733585936914,1.04535861,4000.3,3999.9,1.75004]
[1733585937131,0.86493811,4000.2,3999.9,1.75004]
[1733585937344,1.04535861,4000.4,3999.9,1.75004]
[1733585937508,0.86498584,4000.3,3999.7,0.8181]
[1733585937702,1.04535861,4000.6,4000.1,1.74994]
[1733585937949,0.8649208,4000.5,4000.3,0.8181]
[1733585938144,1.04535861,4000.8,4000.4,1.74982]
[1733585938439,2.16220738,4000.7,4000.4,1.74982]
[1733585938643,0.86488295,4000.6,4000.4,1.74982]
[1733585938851,0.06205658,4000.6,4000.4,1.74982]
[1733585939349,1.04535861,4000.8,4000.4,1.74982]
[1733585939541,0.06205658,4000.5,4000.4,1.74982]
[1733585939831,0.06205658,4000.5,4000.3,0.8181]
[1733585939985,1.29746328,4000.7,4000.3,2.56796]
[1733585940143,0.06205658,4000.4,4000.3,2.56796]
[1733585940344,1.04535861,4000.8,4000.3,2.56796]
[1733585940566,2.2246549,4000.7,4000.3,2.56796]
[1733585940784,0.86503933,4000.6,4000.3,2.56796]
[1733585941082,1.04535861,4000.8,4000.4,1.74981]
[1733585941288,0.06205658,4000.5,4000.4,1.74981]
[1733585941793,1.04535861,4000.8,4000.4,1.74981]
[1733585941988,0.06205658,4000.5,3999.9,0.8181]
[1733585942181,0.7682,4000.6,3999.9,0.8181]
[1733585942358,0.06223143,4000.4,3999.9,0.8181]
[1733585942688,0.7682,4000.6,3999.9,0.8181]
[1733585942846,0.06223143,4000.3,3999.9,0.8181]
[1733585943042,0.7682,4000.6,3999.9,0.8181]
[1733585943360,0.7682,4000.6,3999.6,0.7873]
[1733585943361,2.16273695,4000.5,3999.6,0.7873]
[1733585943571,0.92732562,4000.4,3999.6,0.7873]
[1733585943790,0.06223143,4000.4,3999.6,0.7873]
[1733585943959,1.04535861,4000.5,3999.6,0.7873]
[1733585944166,2.22510953,4000.4,3999.6,0.7873]
[1733585944467,0.62290204,4000.4,3999.3,0.7873]
[1733585944681,2.98033962,4000.3,3999.3,2.53759]
[1733585944867,2.162885,4000.2,3999.3,0.7873]
[1733585945241,2.2248672,4000.1,3999.1,1.75038]
[1733585945513,2.16277094,4000.0,3999.1,1.75038]
[1733585945717,1.10744919,4000.1,3999.1,1.75038]
[1733585945870,0.86499593,4000.0,3999.1,1.75038]
[1733585946071,0.8174,3999.9,3999.1,1.75038]
[1733585946273,0.8174,3999.9,3999.0,0.7873]
[1733585946470,0.8174,3999.9,3999.0,1.27514433]
[1733585946667,0.06209058,3999.8,3999.0,1.27514433]
[1733585947813,0.06209058,3999.8,3999.0,3.02556433]
[1733585949495,0.86515204,3999.7,3999.0,3.02556433]
[1733585949707,0.06209058,3999.8,3999.0,3.02556433]
[1733585949898,1.86275861,3999.9,3999.0,3.02556433]
[1733585950097,0.06209058,3999.7,3999.0,3.02556433]
[1733585950305,1.86275861,3999.9,3999.0,3.02556433]
[1733585950306,1.86275861,3999.9,3999.1,0.30255643]
[1733585950491,0.06193028,3999.6,3999.1,0.30255643]
[1733585950686,1.86275861,3999.9,3999.1,0.30255643]
[1733585950870,0.06193028,3999.5,3999.1,0.30255643]
[1733585951073,1.86275861,3999.9,3999.1,0.30255643]
[1733585951276,0.06193028,3999.4,3999.1,0.30255643]
[1733585951517,1.86275861,3999.9,3999.0,3.02556433]
[1733585951818,2.1630604,3999.8,3999.0,3.02556433]
[1733585952011,0.86522416,3999.7,3999.0,1.27514433]
[1733585952226,1.04535861,3999.8,3999.0,1.27514433]
[1733585952424,0.06193028,3999.6,3999.0,1.27514433]
[1733585952575,0.06193028,3999.6,3999.1,0.30256643]
[1733585952777,1.86275861,3999.9,3999.1,0.30256643]
[1733585953073,3.27046135,3999.8,3999.1,0.30256643]
[1733585953304,2.16321966,3999.7,3999.0,1.27514433]
[1733585953469,0.86526898,3999.6,3999.0,1.27514433]
[1733585953669,1.04535861,3999.7,3999.0,1.27514433]
[1733585953914,0.06193028,3999.5,3999.0,1.27514433]
[1733585954105,1.04535861,3999.7,3999.0,1.27514433]
[1733585954310,0.06193028,3999.4,3999.0,1.27514433]
[1733585954500,1.04535861,3999.7,3999.1,0.30256143]
[1733585954700,0.06193028,3999.3,3999.0,0.7873]
[1733585954876,1.04535861,3999.7,3999.0,0.7873]
[1733585955072,0.06193028,3999.2,3999.0,0.7873]
[1733585955312,1.04535861,3999.7,3999.0,0.7873]
[1733585955623,2.16386407,3999.6,3999.0,0.7873]
[1733585955918,2.16386407,3999.6,3998.7,1.75056]
[1733585955919,2.16382359,3999.5,3998.7,0.7873]
[1733585956099,1.10708487,3999.6,3998.7,0.7873]
[1733585956100,1.10708487,3999.6,3998.7,2.53784]
[1733585956274,0.06171169,3999.4,3998.8,0.253784]
[1733585956481,1.04535861,3999.5,3998.8,0.253784]
[1733585956678,0.06171169,3999.3,3998.8,0.253784]
[1733585956885,1.04535861,3999.5,3998.7,0.7873]
[1733585957104,0.06171169,3999.2,3998.7,0.7873]
[1733585957292,1.04535861,3999.5,3998.7,0.7873]
[1733585957492,0.06165824,3999.1,3998.8,1.75051]
[1733585957704,1.04535861,3999.5,3998.8,1.75051]
[1733585957894,0.06165824,3999.0,3998.8,1.75051]
[1733585958217,0.06165824,3998.9,3998.8,2.004291]
[1733585958560,1.04535861,3999.5,3998.8,2.004291]
[1733585958993,2.22617951,3999.4,3998.8,0.253781]
[1733585959055,0.86581818,3999.3,3998.7,0.7873]
[1733585959222,0.06163395,3999.3,3998.7,0.7873]
[1733585959407,1.04535861,3999.5,3998.7,0.7873]
[1733585959603,0.06163395,3999.2,3998.7,0.7873]
[1733585959807,1.04535861,3999.5,3998.7,0.7873]
[1733585960044,0.06163395,3999.1,3998.7,0.7873]
[1733585960342,1.04535861,3999.5,3998.8,0.253789]
[1733585960543,0.06162423,3999.0,3998.7,0.7873]
[1733585960744,1.04535861,3999.4,3998.7,0.7873]
[1733585961046,2.16501207,3999.3,3998.7,0.7873]
[1733585961211,0.06151247,3999.3,3998.7,0.7873]
[1733585961411,0.86594709,3999.2,3998.4,0.97204293]
[1733585961642,0.7821,3999.3,3998.5,0.27227729]
[1733585961941,0.06151247,3999.1,3998.5,0.27227729]
[1733585962210,1.04535861,3999.2,3998.5,0.27227729]
[1733585962449,0.7821,3999.3,3998.4,0.7822]
[1733585962450,3.21001234,3999.1,3998.4,0.7822]
[1733585962618,4.96045234,3999.0,3998.4,0.7822]
[1733585962810,3.21001234,3998.9,3998.4,0.7822]
[1733585963154,2.16453071,3998.8,3998.4,0.7822]
[1733585963350,0.86556511,3998.7,3998.2,0.7822]
[1733585963535,1.04535861,3998.9,3998.2,0.7822]
[1733585963851,0.8656023,3998.8,3998.2,0.7822]
[1733585964013,0.06151247,3998.8,3998.2,0.7822]
[1733585964811,1.04535861,3999.0,3998.2,0.7822]
[1733585965156,0.06151247,3998.7,3998.3,1.75073]
[1733585965316,1.04535861,3999.1,3998.4,0.253293]
[1733585965535,0.06151247,3998.6,3998.4,0.253293]
[1733585965722,1.04535861,3999.1,3998.4,0.253293]
[1733585966032,2.1629625,3999.0,3998.4,0.253293]
[1733585966235,0.06151247,3999.0,3998.4,0.253293]
[1733585966442,0.06151247,3999.0,3998.4,2.003983]
[1733585966673,0.06151247,3999.0,3998.2,0.7822]
[1733585966674,0.06151247,3999.0,3998.5,0.2786183]
[1733585966830,0.06151247,3999.0,3998.7,1.75052]
[1733585967023,1.04535861,3999.4,3998.6,2.5751]
[1733585967228,0.06132296,3998.9,3998.6,2.5751]
[1733585967436,1.04535861,3999.5,3998.6,2.5751]
[1733585967437,1.04535861,3999.5,3998.6,0.8245]
[1733585967748,0.06132296,3998.8,3998.7,1.75056]
[1733585967948,1.04535861,3999.5,3998.8,1.75052]
[1733585968155,3.20753461,3999.4,3998.8,1.75052]
[1733585968342,0.8648704,3999.3,3998.8,1.75052]
[1733585968538,1.04535861,3999.4,3998.8,1.75052]
[1733585968739,0.06132296,3999.2,3998.8,1.75052]
[1733585968963,0.06132296,3999.1,3998.9,0.2832526]
[1733585969358,1.04535861,3999.4,3998.9,0.2832526]
[1733585969530,0.06132296,3999.0,3998.9,0.2832526]
[1733585969731,1.04535861,3999.4,3998.9,0.2832526]
[1733585970029,0.86463147,3999.3,3998.9,0.2832526]
[1733585970237,0.06132296,3999.3,3999.0,0.20337726]
[1733585971102,0.06132296,3999.3,3998.8,1.75052]
[1733585971934,1.04535861,3999.5,3998.8,1.75052]
[1733585972267,2.16143187,3999.4,3998.8,1.75052]
[1733585972482,0.86457275,3999.3,3998.6,0.8245]
[1733585972782,1.04535861,3999.5,3999.2,0.8245]
[1733585972934,2.87861723,3999.9,3999.2,2.57484]
[1733585972935,0.86452793,3999.4,3999.2,2.57484]
[1733585973269,1.04535861,3999.6,3999.2,2.57484]
[1733585973579,0.86452598,3999.5,3999.2,2.57484]
[1733585973757,1.04535861,3999.6,3999.2,2.57484]
[1733585973960,0.86449934,3999.5,3999.2,2.57484]
[1733585974144,1.04535861,3999.6,3999.2,2.57484]
[1733585974345,1.04535861,3999.7,3999.3,1.75028]
[1733585974549,2.16124787,3999.6,3999.3,1.75028]
[1733585974793,1.04535861,3999.7,3999.4,1.75026]
[1733585974945,1.04535861,3999.8,3999.4,1.75026]
[1733585975147,0.86453176,3999.7,3999.4,1.75026]
[1733585975359,1.04535861,3999.8,3999.4,1.75026]
[1733585975583,0.8645748,3999.7,3999.4,1.75026]
[1733585975776,1.04535861,3999.8,3999.2,2.57484]
[1733585975969,2.16144013,3999.7,3999.2,2.57484]
[1733585976173,0.86457618,3999.6,3999.2,2.57484]
[1733585976378,0.86457618,3999.6,3998.9,1.75044]
[1733585976379,1.12829727,3999.6,3998.9,1.75044]
[1733585976888,0.86459413,3999.5,3998.9,1.75044]
[1733585977100,1.12829727,3999.6,3998.9,1.75044]
[1733585977246,0.86459006,3999.5,3998.9,1.75044]
[1733585977455,0.7805,3999.6,3998.9,1.75044]
[1733585977790,0.86460863,3999.5,3999.0,1.75042]
[1733585978110,1.04535861,3999.7,3999.0,1.75042]
[1733585978391,3.20684906,3999.6,3999.0,1.75042]
[1733585978683,0.86459618,3999.5,3999.0,1.75042]
[1733585978887,1.04535861,3999.6,3999.0,1.75042]
[1733585979194,0.86477443,3999.5,3998.8,0.7928]
[1733585979363,1.04535861,3999.7,3999.3,1.75026]
[1733585979594,2.1619949,3999.6,3999.3,1.75026]
[1733585979751,0.86479796,3999.5,3999.3,1.75026]
[1733585979947,1.04535861,3999.7,3999.3,1.75026]
[1733585980143,2.16200072,3999.6,3999.3,1.75026]
[1733585980346,0.86480029,3999.5,3999.3,1.75026]
[1733585980547,1.04535861,3999.7,3999.3,1.75026]
[1733585980793,2.16183871,3999.6,3999.3,1.75026]
[1733585981095,0.86473548,3999.5,3999.3,1.75026]
[1733585981299,1.04535861,3999.7,3999.3,1.75026]
[1733585981497,3.20720766,3999.6,3999.3,1.75026]
[1733585981801,0.86473962,3999.5,3999.3,1.75026]
[1733585981991,1.04535861,3999.6,3999.3,1.75026]
[1733585982198,2.16170193,3999.5,3999.3,1.75026]
[1733585982397,1.04535861,3999.6,3999.3,1.75026]
[1733585982593,2.16174978,3999.5,3999.3,1.75026]
[1733585982758,0.86469997,3999.4,3999.3,1.75026]
[1733585983559,0.0612258,3999.4,3999.3,2.004566]
[1733585983757,1.04535861,3999.6,3999.3,1.75026]
[1733585983963,1.04535861,3999.6,3999.1,0.7928]
[1733585983964,2.22313126,3999.5,3999.1,0.7928]
[1733585984197,0.0612258,3999.5,3999.1,0.7928]
[1733585984404,0.8649016,3999.4,3999.1,0.7928]
[1733585984605,1.04535861,3999.5,3999.1,0.7928]
[1733585984759,0.0612258,3999.3,3999.0,1.75041]
[1733585985162,0.8054,3999.2,3998.8,1.75051]
[1733585985403,0.8054,3999.2,3998.4,0.7722]
[1733585985404,0.0612258,3999.1,3998.4,0.7722]
[1733585985598,2.16228508,3999.0,3998.4,0.7722]
[1733585985778,2.16226664,3998.9,3998.4,2.52285]
[1733585985968,0.0612258,3998.8,3998.5,1.75064]
[1733585986165,1.04535861,3999.0,3998.5,1.75065]
[1733585986375,0.92605226,3998.9,3998.5,1.75065]
[1733585986584,0.0612258,3998.9,3998.5,1.75065]
[1733585986789,1.04535861,3999.1,3998.5,1.75065]
[1733585986985,2.22328558,3999.0,3998.5,1.75065]
[1733585987311,0.0612258,3999.0,3998.7,1.75055]
[1733585987498,0.86497546,3998.9,3998.7,1.75055]
[1733585987809,0.06127923,3998.9,3998.7,1.75055]
[1733585988298,0.86510629,3998.8,3998.6,1.75058]
[1733585988497,1.04535861,3999.0,3998.6,1.75058]
[1733585988665,0.06133754,3998.7,3998.6,1.75058]
[1733585988865,1.04535861,3999.0,3998.6,1.75058]
[1733585989200,2.16275408,3998.9,3998.6,1.75058]
[1733585989374,0.86508847,3998.8,3998.6,1.75058]
[1733585989715,0.06133754,3998.8,3998.6,1.75058]
[1733585990190,1.04535861,3999.0,3998.7,1.75056]
[1733585990375,2.1631822,3998.9,3998.7,1.75056]
[1733585990582,2.16327165,3998.8,3998.7,1.75056]
[1733585990983,2.16327165,3998.8,3998.5,1.75064]
[1733585991172,0.86530866,3998.7,3998.5,1.75064]
[1733585991501,1.04535861,3998.9,3998.5,1.75064]
[1733585991704,2.16335091,3998.8,3998.5,1.75064]
[1733585992007,1.04535861,3998.9,3998.5,1.75064]
[1733585992217,0.86534969,3998.8,3998.6,1.75061]
[1733585992388,0.86536662,3998.7,3998.6,1.75061]
[1733585993513,1.04535861,3998.9,3998.6,1.75061]
[1733585993695,0.86540961,3998.8,3998.6,1.75061]
[1733585993882,1.04535861,3998.9,3998.6,1.75061]
[1733585994086,0.86540348,3998.8,3998.6,1.75061]
[1733585994283,1.04535861,3999.0,3998.6,1.75061]
[1733585994585,3.20893434,3998.9,3998.6,1.75061]
[1733585994791,2.16357573,3998.8,3998.6,1.75061]
[1733585995093,0.86543029,3998.7,3998.6,1.75061]
[1733585995411,1.04535861,3998.9,3998.6,1.75061]
[1733585995616,2.16354406,3998.8,3998.6,1.75061]
[1733585995803,0.86541762,3998.7,3998.6,1.75061]
[1733585998091,2.16361509,3998.7,3998.6,1.75061]
[1733585998675,2.224768,3998.7,3998.6,1.75061]
[1733585998875,0.92657053,3998.7,3998.6,1.75061]
[1733585999588,2.22480971,3998.7,3998.6,1.75061]
[1733586000538,0.92657053,3998.7,3998.6,1.75061]
[1733586000861,0.92657053,3998.7,3998.5,1.75063]
[1733586001161,0.86541762,3998.6,3998.5,1.75063]
[1733586001854,0.92657053,3998.6,3998.5,1.75063]
[1733586003154,0.06115291,3998.6,3998.5,2.80592389]
[1733586003696,1.04535861,3999.2,3998.9,1.75046]
[1733586003848,0.86558732,3999.1,3998.9,1.75046]
[1733586004174,1.04535861,3999.2,3998.9,1.75046]
[1733586004343,1.04535861,3999.2,3999.0,1.75043]
[1733586004344,2.16400887,3999.1,3999.0,1.75043]
[1733586004774,0.86560355,3999.1,3999.0,2.83073894]
[1733586005434,1.04535861,3999.3,3999.0,2.83073894]
[1733586005751,3.20947611,3999.2,3999.1,1.75039]
[1733586006150,2.1641175,3999.2,3999.1,1.75039]
[1733586006359,2.61497082,3999.9,3999.1,1.75039]
[1733586006360,1.04535861,3999.6,3999.5,1.75021]
[1733586006551,3.21120592,3999.6,3999.5,3.64671894]
[1733586006864,3.21120592,3999.6,3999.5,0.8162]
[1733586007071,3.21120592,3999.6,3999.2,1.89650894]
[1733586007267,3.21120864,3999.5,3998.9,0.8162]
[1733586007481,1.04695727,3999.3,3998.8,1.75052]
[1733586007647,1.04695727,3999.1,3998.8,1.75052]
[1733586007852,0.86570055,3999.0,3998.8,1.75052]
[1733586008029,1.04695727,3999.1,3998.8,1.75052]
[1733586008258,0.86556208,3999.0,3998.9,2.83075894]
[1733586008474,1.04695727,3999.2,3998.9,3.64695894]
[1733586008777,2.16395628,3999.1,3998.9,3.64695894]
[1733586008937,1.04695727,3999.2,3998.9,3.64695894]
[1733586009130,0.86555238,3999.1,3999.0,1.75043]
[1733586009373,2.16395162,3999.1,3999.0,1.75043]
[1733586009675,0.86555238,3999.1,3999.0,1.75043]
[1733586010171,0.86555238,3999.1,3999.0,2.11762432]
[1733586010685,1.04695727,3999.4,3999.0,2.11762432]
[1733586010850,3.43087082,4000.0,3999.3,1.7503]
[1733586010851,1.04695727,3999.5,3999.3,1.7503]
[1733586011168,0.8657023,3999.4,3999.3,1.7503]
[1733586011396,3.21117397,3999.4,3999.3,1.7503]
[1733586011607,2.1642167,3999.4,3999.3,1.7503]
[1733586012582,2.16409863,3999.4,3999.3,1.7503]
[1733586012887,3.2110559,3999.4,3999.3,1.7503]
[1733586013190,3.2110559,3999.4,3999.2,1.75034]
[1733586013499,2.1641384,3999.3,3999.2,1.75034]
[1733586013663,0.92719566,3999.3,3999.2,1.75034]
[1733586013863,2.22571504,3999.3,3999.2,1.75034]
[1733586014798,0.92719566,3999.3,3999.2,1.75034]
[1733586015160,0.06155621,3999.3,3999.2,1.75034]
[1733586015361,0.92719207,3999.3,3999.2,1.75034]
[1733586015556,0.86563586,3999.3,3999.2,3.19533383]
[1733586015773,1.04695727,3999.6,3999.3,0.8162]
[1733586015974,1.04695727,3999.6,3999.5,1.75021]
[1733586016293,3.2111484,3999.6,3999.5,1.75021]
[1733586017346,3.2108861,3999.6,3999.5,1.75021]
[1733586018069,2.16392883,3999.6,3999.5,1.75021]
[1733586018260,3.2108861,3999.6,3999.5,1.75021]
[1733586019400,3.21082611,3999.6,3999.5,1.75021]
[1733586020124,2.16392883,3999.6,3999.5,1.75021]
[1733586021297,2.16392883,3999.6,3999.3,0.8162]
[1733586021511,3.21108607,3999.5,3999.3,2.56649]
[1733586021707,2.16392883,3999.4,3999.3,2.56649]
[1733586021900,0.86557153,3999.4,3999.3,2.56649]
[1733586022062,2.16436268,3999.4,3999.3,2.56649]
[1733586022374,2.16456851,3999.4,3999.3,2.56649]
[1733586025639,3.21172575,3999.4,3999.3,2.56649]
[1733586026306,3.21072127,3999.4,3999.3,2.56649]
[1733586027503,3.21064341,3999.4,3999.3,2.56649]
[1733586027802,0.86539447,3999.4,3999.3,2.56649]
[1733586028104,1.04715724,3999.6,3999.5,1.75021]
[1733586028275,3.21063869,3999.6,3999.5,1.75021]
[1733586028606,0.86539258,3999.6,3999.5,1.75021]
[1733586028828,0.92709454,3999.6,3999.5,1.75021]
[1733586029109,0.06170196,3999.6,3999.5,1.75021]
[1733586029265,1.04715724,3999.9,3999.8,1.75008]
[1733586029462,2.1629137,3999.9,3999.8,2.83038894]
[1733586029664,2.1629137,3999.9,3999.8,3.61138894]
[1733586030273,1.04715724,4000.2,4000.1,1.74995]
[1733586030488,3.21002344,4000.2,4000.1,1.74995]
[1733586031275,2.1628662,4000.2,4000.1,1.74995]
[1733586031464,0.86514648,4000.2,4000.1,2.83025894]
[1733586031706,2.1625481,4000.2,4000.1,2.83025894]
[1733586031903,0.86514648,4000.2,4000.1,3.36639183]
[1733586032109,1.04715724,4000.4,4000.3,1.74986]
[1733586032402,3.20906266,4000.4,4000.3,1.74986]
[1733586033272,2.16190542,4000.4,4000.3,1.74986]
[1733586033375,0.86476217,4000.4,4000.3,1.74986]
[1733586034328,1.04715724,4000.6,4000.1,1.08030894]
[1733586034623,1.04715724,4000.9,4000.7,1.74969]
[1733586034814,1.04715724,4001.0,4000.7,1.74969]
[1733586035004,0.86440211,4000.9,4000.8,2.82995894]
[1733586035193,1.04715724,4001.2,4001.0,1.74956]
[1733586035398,1.04715724,4001.3,4000.8,1.08030894]
[1733586035708,0.86411899,4001.2,4001.1,1.74951]
[1733586036027,2.16023985,4001.2,4001.1,1.74951]
[1733586036219,0.86411899,4001.2,4001.1,1.74951]
[1733586036894,0.86411899,4001.2,4001.1,2.82981894]
[1733586037185,0.7761,4001.7,4001.3,1.74938]
[1733586037708,0.7761,4001.7,4000.5,0.781]
[1733586037910,2.15843507,4001.6,4000.8,1.74964]
[1733586038226,1.29464551,4001.6,4000.8,1.74964]
[1733586038611,0.86310672,4001.5,4000.8,1.74964]
[1733586038809,0.39810095,4001.4,4000.6,2.83003894]
[1733586039015,0.7761,4001.3,4000.6,2.83003894]
[1733586039416,0.7761,4001.3,4000.7,1.74967]
[1733586041835,0.7761,4001.3,4000.6,1.08030894]
[1733586042040,0.7761,4001.3,4000.7,1.74969]
[1733586043703,0.06232739,4001.2,4000.7,1.74969]
[1733586044200,0.05232739,4001.2,4000.7,1.74969]
[1733586044731,0.05232739,4001.2,4000.3,0.781]
[1733586045086,0.05232739,4001.2,4000.5,1.74977]
[1733586045437,0.05232739,4001.2,4000.3,1.74986]
[1733586045743,0.8293,4001.1,4000.1,2.83024894]
[1733586045895,1.25946212,4001.1,4000.1,2.83024894]
[1733586048040,0.8293,4001.0,4000.1,1.08030894]
[1733586048605,0.06234366,4000.9,4000.1,1.08030894]
[1733586049912,0.06234366,4000.9,3999.7,0.7939]
[1733586050116,2.57895,4000.8,3999.7,2.54401]
[1733586050455,0.37216026,4000.7,3999.7,2.54401]
[1733586050755,0.43450392,4000.7,3999.7,2.54401]
[1733586051115,0.8293,4000.6,3999.7,2.54401]
[1733586051610,0.06234366,4000.5,3999.7,2.54401]
[1733586051814,0.8293,4000.4,3999.7,1.75011]
[1733586052430,0.06234366,4000.3,3999.6,1.75017]
[1733586053539,0.06234366,4000.3,3999.4,1.75025]
[1733586054343,0.06234366,4000.3,3999.6,1.08030894]
[1733586054716,0.06234366,4000.3,4000.0,0.7939]
[1733586054920,0.8293,4000.7,4000.0,0.7939]
[1733586055153,0.06195036,4000.2,4000.1,0.02499574]
[1733586055363,0.8293,4000.7,4000.3,1.74985]
[1733586055555,0.8293,4001.0,4000.3,1.74985]